bitfinex/quotes_ETHUSD_20250801
["timestamp","ask_amount","ask_price","bid_price","bid_amount"]
[1754058238715,0.01,3646.9,3646.8,7.41493008]
[1754058239066,0.01,3646.9,3646.8,2.87893008]
[1754058239376,0.01,3646.9,3646.8,7.41393008]
[1754058239748,0.01,3646.9,3646.8,4.6718]
[1754058240209,0.01,3646.9,3646.8,0.1368]
[1754058240807,1.8268,3646.9,3646.7,0.1368]
[1754058241003,1.8168,3646.8,3646.5,2.74235563]
[1754058241208,1.8168,3646.8,3646.6,0.1368]
[1754058241506,0.01,3646.9,3646.6,0.1368]
[1754058241674,0.01,3646.9,3646.6,2.87905411]
[1754058242099,0.01,3646.9,3646.6,0.1368]
[1754058242496,0.01,3646.9,3646.7,2.74220528]
[1754058242703,0.01,3646.9,3646.8,0.1368]
[1754058242872,0.01,3646.9,3646.8,2.87893008]
[1754058243072,0.01,3646.9,3646.8,0.1368]
[1754058243400,0.01,3646.9,3646.8,5.24393008]
[1754058244188,0.01,3646.9,3646.8,2.87893008]
[1754058244517,0.01,3646.9,3646.8,0.1368]
[1754058244679,1.8268,3646.9,3646.2,0.1368]
[1754058244874,0.1368,3646.4,3645.9,4.534]
[1754058245183,0.01,3646.9,3646.8,2.74213008]
[1754058245492,2.2242,3646.9,3646.1,4.534]
[1754058245828,0.01,3646.9,3646.8,2.74213008]
[1754058246578,0.01,3646.9,3646.8,9.64373008]
[1754058247303,0.01,3646.9,3646.8,2.74213008]
[1754058247502,0.01,3647.9,3647.7,2.74140031]
[1754058247705,0.01,3647.9,3647.8,2.74137836]
[1754058247906,0.01,3647.9,3647.8,2.87817836]
[1754058250215,1.8471,3647.9,3647.6,0.1368]
[1754058250522,1.8371,3647.8,3647.2,2.74176622]
[1754058250721,0.1368,3647.6,3647.1,2.74188345]
[1754058250896,0.1368,3647.4,3647.0,4.533]
[1754058251520,0.1368,3647.4,3647.1,2.74185379]
[1754058251737,0.1368,3647.4,3647.0,4.533]
[1754058251914,0.01,3647.9,3647.4,2.74163201]
[1754058252081,0.1368,3647.6,3647.2,2.74176156]
[1754058252283,2.2142,3647.5,3647.1,0.1368]
[1754058252584,0.33519,3647.6,3646.7,7.27419058]
[1754058252585,0.1368,3647.2,3646.7,7.27419058]
[1754058252786,17.24282242,3647.1,3645.5,0.002]
[1754058252985,0.1368,3646.7,3645.6,11.51730826]
[1754058253185,0.1368,3646.0,3645.6,6.98530826]
[1754058253424,15.40572242,3646.4,3645.5,0.002]
[1754058253425,0.1368,3645.8,3645.5,0.002]
[1754058253580,0.03428696,3645.7,3645.5,0.002]
[1754058253783,1.54057224,3646.3,3645.5,0.002]
[1754058254081,0.3771,3646.1,3645.5,0.002]
[1754058254280,1.8371,3645.7,3645.5,0.002]
[1754058254486,2.74303269,3645.6,3645.5,0.002]
[1754058254801,14.532,3645.9,3645.5,0.002]
[1754058255005,18.97765784,3645.9,3645.5,0.002]
[1754058255325,1.8371,3645.8,3645.5,0.002]
[1754058255527,10.0,3646.7,3645.5,0.002]
[1754058255729,1.8371,3646.3,3645.7,2.74291353]
[1754058255903,1.8371,3646.3,3645.5,2.74509681]
[1754058255904,1.8371,3646.3,3645.5,0.002]
[1754058256104,1.8371,3646.3,3645.8,2.74287484]
[1754058256305,1.8371,3646.3,3645.7,2.74293131]
[1754058256635,2.02081,3646.3,3645.5,0.002]
[1754058257205,6.55281,3646.3,3645.7,2.74289843]
[1754058257400,6.55281,3646.3,3645.5,0.002]
[1754058257614,0.03428226,3646.2,3645.5,0.002]
[1754058257822,2.2142,3646.1,3645.5,0.002]
[1754058258140,2.61409147,3646.0,3645.5,0.002]
[1754058258340,2.74303269,3645.6,3645.5,0.002]
[1754058258547,17.27503269,3645.6,3645.5,0.002]
[1754058258746,11.8371,3645.6,3645.5,0.002]
[1754058258910,10.0,3645.6,3645.5,0.002]
[1754058259547,5.95723269,3645.6,3645.5,0.002]
[1754058259784,3.2142,3645.6,3645.5,0.002]
[1754058260068,5.95723269,3645.6,3645.5,0.002]
[1754058260414,2.8371,3645.6,3645.5,0.002]
[1754058260614,10.0,3645.7,3645.5,0.002]
[1754058260810,10.0,3645.7,3645.6,2.74303269]
[1754058261046,10.0,3645.7,3645.6,5.11163269]
[1754058261552,4.532,3646.8,3646.5,2.74235387]
[1754058261843,7.27415147,3646.8,3645.5,0.4303]
[1754058262045,0.76169271,3646.7,3645.8,2.7428533]
[1754058262227,1.8371,3646.6,3645.9,2.7427978]
[1754058262429,0.72741515,3646.7,3646.1,2.74259008]
[1754058262628,0.72741515,3646.7,3645.5,5.11363975]
[1754058262629,4.532,3646.6,3646.0,2.74270971]
[1754058262824,4.532,3646.6,3646.1,2.74264534]
[1754058263024,4.532,3646.6,3646.2,2.74252563]
[1754058263260,4.532,3646.6,3645.5,5.11365846]
[1754058263460,4.532,3646.6,3645.5,0.002]
[1754058263461,1.87137944,3646.5,3645.5,0.002]
[1754058263622,15.40572242,3646.3,3645.6,2.74302863]
[1754058263964,0.1368,3645.7,3645.5,2.74509428]
[1754058264143,0.1368,3645.7,3645.5,0.002]
[1754058265121,21.80911032,3645.6,3645.5,0.002]
[1754058265321,24.24371173,3645.6,3645.5,0.002]
[1754058265758,7.00088931,3645.6,3645.5,0.002]
[1754058265932,4.532,3645.6,3645.5,0.002]
[1754058266251,1.8371,3646.0,3645.5,2.3706]
[1754058266252,0.1368,3646.0,3645.5,2.3706]
[1754058266559,1.87138508,3645.9,3645.5,0.002]
[1754058266857,18.28555511,3645.6,3645.5,0.002]
[1754058267023,22.81755511,3645.6,3645.5,0.002]
[1754058267222,22.81755511,3645.6,3645.1,0.01]
[1754058267223,2.74333369,3645.2,3645.1,0.01]
[1754058267553,2.74352164,3645.0,3643.8,0.1376]
[1754058267729,4.70309167,3645.2,3643.3,0.20651778]
[1754058267730,15.40572242,3644.7,3643.3,0.20651778]
[1754058268058,2.88168649,3644.2,3643.5,2.0779]
[1754058268355,4.6696,3644.2,3643.5,1.9403]
[1754058268555,4.6696,3644.2,3643.7,2.74440628]
[1754058268754,4.6696,3644.2,3643.8,2.74437464]
[1754058269054,4.6696,3644.2,3643.7,2.74440676]
[1754058269256,4.6696,3644.2,3643.6,2.74450666]
[1754058269561,9.25078649,3644.2,3643.3,2.88230842]
[1754058269727,9.25078649,3644.2,3643.5,2.74460231]
[1754058269954,9.25078649,3644.2,3643.1,0.01]
[1754058270184,9.25078649,3644.2,3643.3,2.74471125]
[1754058270393,9.25078649,3644.2,3643.1,0.01]
[1754058270714,19.62788649,3644.2,3643.2,2.74483115]
[1754058270853,21.48797091,3644.2,3643.4,2.74468707]
[1754058271066,21.48797091,3644.2,3643.2,2.74478672]
[1754058271376,21.48797091,3644.2,3643.1,0.01]
[1754058271377,10.1376,3644.2,3643.7,1.9403]
[1754058271585,0.1376,3644.2,3644.1,2.3786]
[1754058272305,0.1376,3644.3,3644.1,2.3786]
[1754058272515,10.0,3645.2,3644.2,5.11268649]
[1754058272657,0.1368,3644.8,3644.3,2.74401119]
[1754058272859,10.0,3645.2,3644.6,2.74374371]
[1754058273062,0.1368,3645.1,3644.7,1.9403]
[1754058273359,10.0,3645.2,3644.8,2.3686]
[1754058273613,4.532,3645.4,3645.0,0.1368]
[1754058273775,0.1368,3645.5,3644.9,2.3686]
[1754058273972,4.532,3645.8,3645.3,2.74320423]
[1754058274188,12.742376,3646.5,3645.7,2.74291483]
[1754058274389,0.1368,3645.9,3645.5,2.74308438]
[1754058274693,10.0,3646.8,3646.3,2.7424447]
[1754058274868,10.0,3646.8,3646.1,0.1368]
[1754058274869,0.1368,3646.6,3646.1,0.1368]
[1754058275791,0.1368,3646.6,3646.4,2.74237508]
[1754058275990,0.1368,3646.6,3646.3,2.7424351]
[1754058276164,0.1368,3646.6,3646.3,1.8189]
[1754058276366,4.543,3646.9,3645.6,0.4721]
[1754058276587,0.1368,3646.4,3645.9,0.1368]
[1754058276762,0.1368,3646.4,3645.8,2.87967009]
[1754058276957,0.1368,3646.4,3646.0,2.74267692]
[1754058277187,0.1368,3646.4,3645.9,0.4721]
[1754058277402,4.531,3646.7,3646.0,1.8189]
[1754058277720,0.1368,3646.6,3646.1,0.1368]
[1754058277925,0.011,3646.9,3646.5,2.74235568]
[1754058278085,0.011,3646.9,3646.8,2.74213008]
[1754058278684,0.011,3646.9,3646.8,5.03313008]
[1754058278884,0.011,3646.9,3646.4,1.8189]
[1754058279112,0.011,3646.9,3646.8,2.74213008]
[1754058279285,0.011,3646.9,3646.7,2.74218199]
[1754058279499,0.011,3646.9,3646.6,4.56115875]
[1754058279872,0.011,3646.9,3646.5,0.4721]
[1754058280025,0.011,3646.9,3646.5,3.21439261]
[1754058280382,0.011,3646.9,3646.5,5.03329261]
[1754058280582,0.011,3646.9,3646.6,2.291]
[1754058280831,0.011,3646.9,3646.7,2.291]
[1754058280985,0.011,3646.9,3646.8,2.74213008]
[1754058281184,0.011,3646.9,3646.8,2.291]
[1754058281419,0.011,3646.9,3646.8,5.03313008]
[1754058281722,0.011,3646.9,3646.6,2.74226749]
[1754058282084,0.011,3646.9,3646.4,2.74243089]
[1754058282285,0.011,3646.9,3646.2,1.8189]
[1754058282585,0.011,3646.9,3646.2,4.56144536]
[1754058282783,0.011,3646.9,3646.4,2.74237668]
[1754058283009,2.75308467,3646.9,3646.2,1.8189]
[1754058283214,2.74218407,3646.8,3646.2,1.8189]
[1754058283530,2.74213811,3646.8,3646.2,4.56148077]
[1754058283826,2.74213811,3646.8,3646.2,1.8189]
[1754058284024,3.30255427,3646.9,3646.2,4.56147138]
[1754058284185,0.011,3646.9,3646.3,2.7425061]
[1754058284387,0.011,3646.9,3645.3,2.74319463]
[1754058284715,0.011,3646.9,3646.4,2.291]
[1754058284947,0.011,3646.9,3646.7,2.74218563]
[1754058285150,0.011,3646.9,3646.5,2.291]
[1754058285321,0.011,3646.9,3646.6,2.291]
[1754058285950,0.011,3646.9,3646.6,2.49443002]
[1754058286164,0.011,3646.9,3646.6,5.03326662]
[1754058286366,0.011,3646.9,3646.7,5.03320099]
[1754058286572,0.011,3646.9,3646.8,2.74213008]
[1754058286785,0.011,3646.9,3646.5,2.74230806]
[1754058286967,0.011,3646.9,3646.4,1.8189]
[1754058286968,0.011,3646.9,3646.8,5.03313008]
[1754058287281,0.01,3647.9,3646.8,2.291]
[1754058287584,0.01,3647.9,3646.9,6.819]
[1754058287871,0.01,3647.9,3647.1,2.74190452]
[1754058288173,0.01,3647.9,3647.6,0.1368]
[1754058288340,0.01,3647.9,3647.0,2.291]
[1754058288672,0.1468,3647.9,3647.4,0.1368]
[1754058288976,0.1468,3647.9,3646.9,4.528]
[1754058288977,2.74150624,3647.7,3646.9,4.528]
[1754058289277,2.74150624,3647.7,3646.3,2.94688759]
[1754058289278,0.1368,3647.3,3646.8,0.1368]
[1754058289461,0.1368,3647.3,3646.9,2.74205369]
[1754058289665,0.1368,3647.3,3646.8,0.1368]
[1754058290037,2.87862532,3647.3,3646.8,0.1368]
[1754058290242,0.1368,3647.0,3646.5,5.1359]
[1754058290644,0.1368,3647.0,3646.6,2.291]
[1754058290840,10.0,3647.8,3647.1,2.74185711]
[1754058291070,10.0,3647.8,3647.1,2.291]
[1754058291268,10.0,3647.8,3647.2,2.74176422]
[1754058291585,2.74150828,3647.7,3647.1,2.74189678]
[1754058291785,2.7416187,3647.5,3647.0,4.527]
[1754058292081,2.74189821,3647.2,3646.5,2.74230712]
[1754058292254,2.7266127,3647.4,3646.4,2.742422]
[1754058292450,2.74196793,3647.1,3646.4,2.742422]
[1754058292668,2.74185878,3647.2,3646.5,2.74234918]
[1754058292841,1.72526127,3647.3,3646.6,2.291]
[1754058293042,1.72526127,3647.3,3646.3,0.21072307]
[1754058293242,1.72526127,3647.3,3644.2,18.32499555]
[1754058293243,3.52646127,3647.3,3646.1,0.4721]
[1754058293463,3.52646127,3647.3,3644.6,2.74377502]
[1754058293464,3.0383774,3647.2,3645.8,1.8189]
[1754058293671,2.74230075,3646.6,3645.9,2.74274334]
[1754058293874,2.74230075,3646.6,3645.4,1.8189]
[1754058293875,1.8012,3646.6,3645.4,1.8189]
[1754058294076,2.74240435,3646.5,3645.4,1.8189]
[1754058294375,4.54348818,3646.6,3645.5,3.21520794]
[1754058294678,2.74223263,3646.7,3646.0,2.74268391]
[1754058294841,2.74197989,3647.0,3646.2,2.74258131]
[1754058295041,12.74192726,3647.1,3646.1,2.291]
[1754058295376,10.0,3647.1,3646.3,2.7425061]
[1754058295553,2.74211574,3646.9,3646.2,5.0335751]
[1754058295761,6.3272,3647.2,3646.2,2.291]
[1754058296089,2.74192351,3647.1,3646.4,2.7424195]
[1754058296259,2.74192351,3647.1,3646.2,2.291]
[1754058296577,2.74203134,3647.0,3646.3,2.7424809]
[1754058296776,2.74199957,3647.0,3646.4,2.74242762]
[1754058297074,3.11425417,3647.1,3646.5,2.74233715]
[1754058297262,15.40572242,3647.6,3646.5,2.74233715]
[1754058297263,1.8112,3647.9,3646.7,2.74220528]
[1754058297462,2.74195499,3647.1,3646.4,2.74440801]
[1754058297662,0.001,3647.1,3646.7,2.74218084]
[1754058297863,0.001,3647.1,3646.6,2.74225612]
[1754058298064,0.001,3647.1,3646.7,2.74214848]
[1754058298269,0.001,3647.1,3646.4,0.4741]
[1754058298781,1.8022,3647.1,3646.4,0.002]
[1754058298955,2.74218225,3646.8,3646.4,0.002]
[1754058299570,2.74229751,3646.6,3646.4,0.002]
[1754058299915,2.77663512,3646.5,3646.4,0.002]
[1754058300071,4.95493512,3646.5,3646.4,0.002]
[1754058300587,10.0,3646.5,3646.4,0.002]
[1754058300785,10.0,3646.5,3646.4,5.03543089]
[1754058300954,10.0,3646.5,3646.4,0.002]
[1754058301478,4.525,3646.9,3646.4,0.002]
[1754058301681,0.1368,3646.7,3646.4,5.03536693]
[1754058301881,2.74292028,3647.1,3646.5,2.291]
[1754058301882,4.525,3647.0,3646.5,2.291]
[1754058302084,0.1368,3646.7,3646.4,0.002]
[1754058302458,0.001,3647.1,3646.5,2.291]
[1754058302784,0.001,3647.1,3647.0,2.7419797]
[1754058303273,0.001,3647.1,3647.0,9.72219949]
[1754058303476,0.001,3647.1,3647.0,9.6947797]
[1754058303679,0.001,3647.1,3647.0,2.4278]
[1754058303860,0.001,3647.1,3646.4,0.002]
[1754058304062,0.1368,3647.0,3646.5,0.1368]
[1754058304853,2.74235568,3646.5,3646.4,0.002]
[1754058305053,3.30449782,3646.5,3646.4,0.002]
[1754058305354,20.96699968,3646.5,3646.4,0.002]
[1754058305578,30.93272024,3646.5,3646.4,0.002]
[1754058306598,30.93272024,3646.5,3646.4,1e-08]
[1754058306801,30.93272024,3646.5,3644.3,6.587]
[1754058306802,2.74401119,3644.3,3643.3,2.312]
[1754058306999,2.74401119,3644.3,3643.1,0.01]
[1754058307000,2.74408649,3644.2,3643.1,0.01]
[1754058307156,2.74408649,3644.2,3643.6,0.1376]
[1754058307350,5.13848757,3644.2,3643.1,0.01]
[1754058307556,15.13848757,3644.2,3643.1,0.01]
[1754058307856,2.74438772,3643.8,3643.1,0.01]
[1754058308094,7.95485559,3643.8,3643.1,0.01]
[1754058309382,9.80025559,3643.8,3643.1,0.01]
[1754058309561,7.95485559,3643.8,3643.1,0.01]
[1754058310083,0.1376,3643.8,3643.7,0.4594]
[1754058310252,0.1376,3643.8,3643.7,1.8566]
[1754058310452,0.1376,3644.1,3643.7,2.314]
[1754058310655,0.1376,3644.1,3643.8,2.312]
[1754058310871,0.1376,3644.2,3643.8,2.312]
[1754058311482,0.1376,3644.2,3643.9,2.312]
[1754058311895,0.1376,3644.2,3643.7,0.002]
[1754058312078,10.0,3644.8,3644.7,2.74371004]
[1754058312263,10.0,3644.8,3644.7,5.19251004]
[1754058312465,0.01,3645.9,3645.2,2.74333369]
[1754058312665,3.1105631,3645.9,3645.1,2.74340895]
[1754058312888,0.1368,3645.6,3645.1,0.1368]
[1754058313096,0.1368,3645.6,3645.2,1.8546]
[1754058313300,0.40198413,3645.9,3644.7,0.4574]
[1754058313478,0.1368,3645.1,3644.7,0.4574]
[1754058313675,2.7429596,3645.7,3645.0,2.74348422]
[1754058313880,0.1368,3645.5,3645.1,1.8546]
[1754058314076,0.1368,3645.5,3645.2,1.8546]
[1754058314281,0.1368,3645.5,3645.3,1.8546]
[1754058314491,0.01,3645.9,3645.8,2.74288222]
[1754058314808,10.0,3646.5,3646.4,2.74243089]
[1754058315000,10.0,3646.5,3646.4,9.57943089]
[1754058315163,10.0,3646.5,3646.4,9.7863888]
[1754058315367,0.01,3646.9,3646.8,2.74213008]
[1754058315767,0.01,3646.9,3646.8,5.19093008]
[1754058316716,1e-08,3647.1,3647.0,2.7419797]
[1754058317071,1e-08,3647.1,3647.0,5.0539797]
[1754058317270,1e-08,3647.1,3647.0,9.5779797]
[1754058317704,1e-08,3647.1,3647.0,9.7147797]
[1754058318294,1e-08,3647.1,3647.0,5.1907797]
[1754058318699,1e-08,3647.1,3647.0,9.7147797]
[1754058319181,1e-08,3647.1,3647.0,0.1368]
[1754058319478,1e-08,3647.1,3646.9,0.1368]
[1754058319887,2.74190756,3647.1,3646.4,0.002]
[1754058320086,0.1368,3646.9,3646.4,0.002]
[1754058320310,0.1368,3646.9,3646.4,2.74441751]
[1754058320489,0.1368,3646.9,3646.4,0.002]
[1754058320692,2.87886111,3646.9,3646.4,0.002]
[1754058320877,0.1368,3646.9,3646.4,0.002]
[1754058321080,2.8788656,3646.9,3646.4,0.002]
[1754058321315,0.1368,3646.9,3646.4,2.74437266]
[1754058321615,0.49077662,3646.8,3646.4,0.002]
[1754058321814,1e-08,3647.1,3646.4,0.002]
[1754058321815,0.1368,3646.6,3646.4,0.002]
[1754058322521,0.1368,3646.6,3646.5,2.74235568]
[1754058322680,0.1368,3646.9,3646.4,0.1388]
[1754058322875,0.1368,3646.9,3646.8,2.74213008]
[1754058323080,1e-08,3647.1,3647.0,2.7419797]
[1754058323505,4.51646006,3647.8,3647.4,2.74165049]
[1754058323817,4.51646006,3647.8,3646.4,2.06722697]
[1754058323818,2.75454601,3647.7,3646.4,2.06722697]
[1754058324174,0.1368,3647.2,3646.9,2.74204346]
[1754058324379,1e-08,3647.7,3646.8,2.74213008]
[1754058324579,0.01,3647.9,3646.4,4.73097564]
[1754058324580,0.01,3647.9,3647.8,2.74137836]
[1754058324815,0.01,3647.9,3647.8,2.87817836]
[1754058325004,0.01,3647.9,3647.8,2.74137836]
[1754058325203,0.01,3647.9,3647.8,5.05337836]
[1754058325390,0.01,3647.9,3647.8,5.19017836]
[1754058325593,0.01,3647.9,3647.8,2.87817836]
[1754058325792,0.01,3647.9,3647.8,4.73277836]
[1754058325991,0.01,3647.9,3647.8,5.19017836]
[1754058326179,0.01,3647.9,3647.8,4.73277836]
[1754058326521,0.01,3647.9,3647.8,0.1368]
[1754058326725,0.01,3647.9,3647.8,2.74137836]
[1754058327320,0.01,3647.9,3647.4,4.5962454]
[1754058327494,0.01,3647.9,3647.8,2.74137836]
[1754058327819,0.1468,3647.9,3647.8,2.74137836]
[1754058328024,0.01,3647.9,3647.8,2.74137836]
[1754058328680,0.01,3647.9,3647.2,2.74176412]
[1754058328891,2.57702837,3647.8,3646.6,6.3766]
[1754058329322,5.31843231,3647.8,3646.8,2.74211864]
[1754058329629,0.27512837,3647.8,3646.9,1.8546]
[1754058329802,0.01,3647.9,3647.0,0.02741979]
[1754058330119,0.01,3647.9,3646.6,1.8546]
[1754058330339,2.74151015,3647.7,3647.0,2.74197514]
[1754058330684,0.01,3647.9,3646.8,6.3766]
[1754058330986,2.74137836,3647.8,3647.1,2.74190393]
[1754058331181,2.74157923,3647.6,3647.2,1.8546]
[1754058331386,0.01,3647.9,3646.9,0.4574]
[1754058331698,0.01,3647.9,3647.0,2.312]
[1754058332019,0.01,3647.9,3647.0,5.312]
[1754058332319,0.01,3647.9,3647.1,0.4574]
[1754058332494,0.01,3647.9,3647.5,2.74154113]
[1754058332694,0.01,3647.9,3647.8,2.74137836]
[1754058332928,0.01,3647.9,3647.1,1.8546]
[1754058333122,0.01,3647.9,3646.7,6.3756]
[1754058333291,2.7415162,3647.7,3647.0,2.74191818]
[1754058333487,0.01,3647.9,3646.7,1.8546]
[1754058333691,2.74145351,3647.7,3646.5,0.4574]
[1754058333896,0.50876198,3647.6,3646.7,2.74215538]
[1754058334120,0.03426816,3647.7,3646.4,0.20797564]
[1754058334292,2.74188999,3647.2,3646.4,0.20797564]
[1754058334488,2.3019,3647.6,3646.4,0.20797564]
[1754058334489,5.04343613,3647.6,3646.5,2.74232991]
[1754058334715,0.01,3647.9,3647.4,2.7416293]
[1754058334941,2.74138074,3647.8,3646.6,1.8546]
[1754058335129,0.73721592,3647.9,3646.6,1.8546]
[1754058335424,1.89666722,3647.8,3646.6,1.8546]
[1754058335628,0.47,3647.7,3646.4,0.002]
[1754058335811,2.74190939,3647.1,3646.4,2.74440618]
[1754058336014,4.521,3647.2,3646.4,0.002]
[1754058336225,4.521,3647.2,3646.6,2.74223296]
[1754058336421,0.0342738,3647.1,3646.4,0.002]
[1754058336601,2.74190452,3647.1,3646.4,0.002]
[1754058336797,5.07400682,3647.5,3646.5,2.74230911]
[1754058337036,5.07400682,3647.5,3646.4,2.74440067]
[1754058337037,2.7419243,3647.1,3646.4,0.002]
[1754058337244,2.74197768,3647.1,3646.4,2.74437125]
[1754058337401,5.02840068,3647.4,3646.4,0.002]
[1754058337604,4.521,3647.3,3646.6,2.74226699]
[1754058337803,2.74182934,3647.2,3646.5,2.74230662]
[1754058338002,0.73608007,3647.2,3646.7,2.74215922]
[1754058338527,0.1368,3646.9,3646.5,2.74235568]
[1754058338832,2.87885576,3646.9,3646.4,0.002]
[1754058339035,0.1368,3646.6,3646.4,1.9937]
[1754058339224,0.1368,3646.8,3646.5,2.74235568]
[1754058339536,0.01,3647.9,3646.6,2.0191228]
[1754058339740,2.74143316,3647.8,3647.1,2.74189086]
[1754058339948,0.01,3647.9,3646.6,2.4228]
[1754058339949,0.1368,3647.5,3646.6,2.4228]
[1754058340243,2.74181361,3647.3,3646.6,2.74222874]
[1754058340456,0.1368,3647.0,3646.7,2.74219632]
[1754058340739,0.1368,3647.0,3646.5,0.1368]
[1754058340935,0.1368,3647.0,3646.6,1.9917]
[1754058341135,0.1368,3647.0,3646.6,4.7339615]
[1754058341348,0.1368,3647.0,3646.7,2.74220422]
[1754058341540,0.1368,3647.0,3646.6,4.73396777]
[1754058341921,0.1368,3647.0,3646.7,4.73384537]
[1754058342117,0.1368,3647.0,3646.5,2.87912805]
[1754058342318,0.1368,3647.0,3646.6,1.9917]
[1754058342560,0.1368,3647.0,3646.4,0.20627477]
[1754058342561,2.74207575,3646.9,3646.4,0.20627477]
[1754058342850,0.1368,3646.7,3646.4,0.20627477]
[1754058343231,0.1368,3646.7,3646.4,0.002]
[1754058343436,7.40002977,3646.7,3646.4,0.002]
[1754058343945,2.74228353,3646.6,3646.4,0.002]
[1754058344275,2.87915568,3646.5,3646.4,0.002]
[1754058344752,5.21155568,3646.5,3646.4,0.002]
[1754058344931,5.24583512,3646.5,3646.4,1e-08]
[1754058345331,5.21155568,3646.5,3646.4,1e-08]
[1754058345818,5.24583512,3646.5,3646.4,1e-08]
[1754058346037,5.24583512,3646.5,3646.0,0.002]
[1754058346038,2.74265653,3646.1,3646.0,0.002]
[1754058346238,23.13458642,3646.1,3646.0,0.002]
[1754058346413,23.13458642,3646.1,3645.1,0.01]
[1754058346414,2.74325844,3645.3,3645.1,0.01]
[1754058346619,7.87105844,3645.3,3645.1,0.01]
[1754058346950,7.40105844,3645.3,3645.1,0.01]
[1754058347137,0.1368,3645.3,3645.2,7.33679257]
[1754058347824,4.521,3645.5,3645.2,7.33679257]
[1754058348436,0.03428978,3645.4,3645.2,5.34509257]
[1754058348641,0.1368,3645.3,3645.2,5.34509257]
[1754058348858,2.74333369,3645.2,3645.1,0.01]
[1754058349377,20.84415525,3645.2,3645.1,0.01]
[1754058349536,2.74408649,3644.2,3644.1,0.01]
[1754058349739,7.43698757,3644.2,3644.1,0.01]
[1754058349983,4.521,3644.2,3644.1,0.01]
[1754058350272,7.26508649,3644.2,3644.1,0.01]
[1754058350770,4.521,3644.2,3644.1,0.01]
[1754058350971,2.74408649,3644.2,3644.1,0.01]
[1754058351275,7.26508649,3644.2,3644.1,0.01]
[1754058351638,4.521,3644.2,3644.1,0.01]
[1754058351976,10.6326787,3644.2,3644.1,0.01]
[1754058352176,5.07648649,3644.2,3644.1,0.01]
[1754058352360,9.59748649,3644.2,3644.1,0.01]
[1754058353340,5.07648649,3644.2,3644.1,0.01]
[1754058353591,9.59848649,3644.2,3644.1,0.01]
[1754058353880,10.83272884,3644.2,3644.1,0.01]
[1754058354286,9.31072884,3644.2,3644.1,0.01]
[1754058354582,13.83272884,3644.2,3644.1,0.01]
[1754058354784,2.74438772,3643.8,3643.7,0.002]
[1754058355032,23.27495638,3643.8,3643.7,0.002]
[1754058355294,23.27495638,3643.8,3642.1,2.75561223]
[1754058355295,2.7448397,3643.2,3642.1,2.75561223]
[1754058355581,7.2668397,3643.2,3642.5,2.74530438]
[1754058355784,7.2668397,3643.2,3642.6,1.9917]
[1754058355988,7.2668397,3643.2,3642.3,0.4311]
[1754058356136,9.5992397,3643.2,3642.2,1.9917]
[1754058356341,10.83363877,3643.2,3642.1,0.01]
[1754058356773,15.73412989,3642.7,3642.1,0.01]
[1754058356976,2.74559332,3642.2,3642.1,0.01]
[1754058357301,2.74617066,3641.5,3641.1,0.01]
[1754058357461,4.523,3641.4,3641.1,0.01]
[1754058358045,2.7462985,3641.3,3641.1,0.01]
[1754058358299,2.74634735,3641.2,3641.1,0.01]
[1754058358478,5.07874735,3641.2,3641.1,0.01]
[1754058358683,6.591,3642.4,3641.1,0.01]
[1754058358990,2.74559332,3642.2,3641.2,2.74629614]
[1754058359141,3.0,3642.2,3641.2,2.74634735]
[1754058359344,2.74579944,3642.0,3641.1,5.17920878]
[1754058359585,20.25812989,3642.1,3641.1,2.0017]
[1754058359880,2.74604331,3641.7,3641.1,0.01]
[1754058360119,0.1376,3641.2,3641.1,0.01]
[1754058360428,4.6616,3641.2,3641.1,0.01]
[1754058360611,4.6616,3641.2,3641.1,4.74812278]
[1754058360935,2.74478077,3643.3,3642.2,2.74559332]
[1754058360936,0.1376,3642.3,3642.2,2.74559332]
[1754058361086,4.524,3642.9,3642.2,2.4228]
[1754058361296,0.1376,3642.8,3642.7,2.74521646]
[1754058361522,3.27443877,3643.8,3642.7,2.74521646]
[1754058361828,2.74481577,3643.3,3641.4,2.74619651]
[1754058361987,4.524,3643.2,3642.6,2.74522742]
[1754058362635,3.0,3643.6,3642.1,0.4311]
[1754058362841,2.74484271,3643.2,3642.3,0.20710062]
[1754058362991,2.7450564,3643.0,3642.2,1.9917]
[1754058363348,2.74482421,3643.3,3642.2,1.9917]
[1754058363349,4.524,3642.9,3642.5,2.74534907]
[1754058363690,4.524,3642.9,3642.4,2.74542536]
[1754058364136,1.1060911,3643.5,3642.5,1.9917]
[1754058364290,17.59652989,3644.7,3642.6,2.74529182]
[1754058364609,4.524,3643.8,3643.6,2.74453701]
[1754058364794,18.06652989,3644.7,3643.8,2.74438772]
[1754058364994,4.534,3643.9,3643.7,2.74440365]
[1754058365212,4.534,3643.9,3643.7,1.9917]
[1754058365411,0.01,3643.9,3643.7,4.73615355]
[1754058365610,4.524,3643.8,3643.7,1.9917]
[1754058366016,4.524,3643.8,3643.7,4.73616304]
[1754058366465,0.01,3643.9,3643.8,2.74438772]
[1754058366626,4.534,3643.9,3643.8,2.74438772]
[1754058366803,4.534,3643.9,3643.8,4.71928772]
[1754058366997,0.01,3643.9,3643.8,5.17228772]
[1754058368945,0.01,3643.9,3643.8,4.74673159]
[1754058369157,0.01,3643.9,3643.8,5.17228772]
[1754058369753,0.01,3643.9,3643.8,4.71928772]
[1754058369955,0.01,3643.9,3643.8,5.17228772]
[1754058370166,4.534,3644.9,3644.7,2.74365419]
[1754058370474,4.534,3644.9,3644.3,2.74397187]